Workbook

Sheet Objednávka (hidden)
D1: V.1.05 20.8.2023 | F1: Dodávateľ odborných služieb: | Q1: 0 | R1: =IF(OR(S1=1,G55<0)=TRUE,IF(G55<0,1+(-1*G55),IF(G55>0.3,1-G55,1)),1) -> 1 | S1: 0 | AA1: =IF(OR(G55<0,G55>0.3)=TRUE,1,0) -> 0
F2: Slovenské centrum obstarávania, o. z.
D3: CENOVÁ PONUKA | F3: Sídlo: Podzámocká 67/6, Bojnice 972 01
D4: odborných služieb | F4: Prevádzka (poštová adresa):
D5: verejného obstarávania | F5: Hurbanovo námestie 46, 972 01 Bojnice
D6: pre komoditu: | F6: IČO: 42260515 | G6: DIČ: 2023510313
F7: IČ DPH: SK2023510313
F8: IBAN: SLSP, a.s. SK0509000000005028332376
B10: Elektrická energia ako burzová komodita
F12: Číslo objednávky SCO (nevypĺňajte)
B13: Objednávateľ: | C13: Verejný obstarávateľ | F13: SCO ID
B14: Inštitúcia | F14: Č. objednávky objednávateľa
F15: IČO
B16: Ulica, číslo | F16: DIČ / IČ DPH | K16: 0 | L16: 200
F17: Banka, IBAN: | K17: 3000 | L17: 250
B18: Sídlo | K18: 6000 | L18: 300
B19: PSČ | F19: Zodpovedná osoba: | K19: 9000 | L19: 350
B20: Štatutárny zástupca | F20: Meno: | K20: 12000 | L20: 400 | Q20: =IF(E29=1,1,IF(E29=2,1.3,1.5)) -> 1.3
B21: Telefón | F21: Telefon: | K21: 16000 | L21: 450
B22: Mobil | F22: Mobil: | L22: =LOOKUP(E33,K16:K21,L16:L21) -> 200
B23: E-mail | F23: E-mail: | L23: =IF(D40="Člen",L22,L22*1.21) -> 242
B25: Týmto u Vás objednávame realizáciu verejného obstarávania na dodávateľa elektrickej energie pre našu inštitúciu
B29: Zadajte obdobie, na ktoré máte záujem zabezpečiť dodávatelia komodity (v rokoch) | E29: 2 | F29: =IF(E29=1,"rok",IF(E29=2,"roky","roky")) -> roky | G29: =IF(E33<70000,"Zákazka s nízkou hodnotou - nižšieho rozsahu",IF(E33<180000,"Zákazka s nízkou hodnotou - vyššieho rozsahu",IF(E33<215000,"Podlimitná zákazka","Nadlimitná zákazka"))) -> Zákazka s nízkou hodnotou - nižšieho rozsahu | K29: =IF(E33<70000,"Zákazka s nízkou hodnotou",IF(E33<221000,"Podlimitná zákazka","Nadlimitná zákazka")) -> Zákazka s nízkou hodnotou | AA29: Údaje v žltom rámčeku a ani modré bunky v stĺpci M klient nevidí
B30: ="Celkový predpokladaný finančný objem na dodávku s distribúciou pre rok " &IF(YEAR(H30)=1900,2017,YEAR(H30)) -> Celkový predpokladaný finančný objem na dodávku s distribúciou pre rok 2024 | E30: ='Výpočet PHZ'!C15 -> 0 | F30: € bez DPH | G30: Počnúc dňom: | H30: 2024-01-01 | K30: 4 | L30: Ing. Miloš Trnavský +421 903 800 684 obchod@i-sco.sk | AC30: 1.21 | AD30: Zákazka s nízkou hodnotou do: | AH30: Podlimit: | AI30: Nadlimit | AJ30: Aktívna cena
B31: ="Celkový predpokladaný finančný objem na dodávku s distribúciou pre rok "&IF(YEAR(H30)=1900,2018,YEAR(H30)+1) -> Celkový predpokladaný finančný objem na dodávku s distribúciou pre rok 2025 | E31: ='Výpočet PHZ'!D15 -> 0 | F31: € bez DPH | G31: Výpoved. lehota: | H31: bez výpovednej lehoty | K31: 1 | L31: Ing. Ľuboš Babarík +421 903 803 306 obchod@i-sco.sk | AB31: Názov | AC31: Číslo riadku | AD31: 10000 | AE31: 40000 | AF31: 70000 | AG31: 180000 | AH31: 215000
B32: ="Celkový predpokladaný finančný objem na dodávku s distribúciou pre rok "&IF(YEAR(H30)=1900,2019,YEAR(H30)+2) -> Celkový predpokladaný finančný objem na dodávku s distribúciou pre rok 2026 | E32: ='Výpočet PHZ'!E15 -> 0 | F32: € bez DPH | G32: Údaje o výpovednej lehote dôkladne skontrolovať! | K32: 2 | L32: Ing.Zdenko Bičár +421 914 341 332 obchod@i-sco.sk | AB32: =LEFT($B$43,20) -> 1) Odborná analýza, | AC32: =ROW($B$43) -> 43 | AD32: 88 | AE32: 176 | AF32: 249 | AG32: 398 | AH32: 440 | AI32: 470 | AJ32: =IF($E$33<=$AD$31,AD32,IF($E$33<=$AE$31,AE32,IF($E$33<=$AF$31,AF32,IF($E$33<$AG$31,AG32,IF($E$33<$AH$31,AH32,AI32))))) -> 88
B33: Predpokladaný finančný objem na obstarávanú komoditu s distribúciou spolu | E33: ='Výpočet PHZ'!C8 -> 0 | F33: € bez DPH | K33: 3 | L33: Ing. Vladimír Fufaľ +421 911 803 102 obchod@i-sco.sk | AB33: =LEFT($B$44,20) -> 2) Vypracovanie rámc | AC33: =ROW($B$44) -> 44 | AD33: 79 | AE33: 98 | AF33: 112 | AG33: 137 | AH33: 150 | AI33: 169 | AJ33: =IF($E$33<=$AD$31,AD33,IF($E$33<=$AE$31,AE33,IF($E$33<=$AF$31,AF33,IF($E$33<$AG$31,AG33,IF($E$33<$AH$31,AH33,AI33))))) -> 79
L34: =VLOOKUP(I40,$K$30:$L$33,2,0) -> Ing. Ľuboš Babarík +421 903 803 306 obchod@i-sco.sk | AB34: =LEFT($B$45,20) -> 3) Vypracovanie súťa | AC34: =ROW($B$45) -> 45 | AD34: 99 | AE34: 154 | AF34: 236 | AG34: 365 | AH34: 400 | AI34: 449 | AJ34: 99
AB35: =LEFT($B$46,20) -> 4) Počet odberných m | AC35: =ROW($B$46) -> 46 | AD35: 18 | AE35: 18 | AF35: 18 | AG35: 18 | AH35: 18 | AI35: 18 | AJ35: 18
B36: =IF(E29=1,"Celková spotreba za obstarávané obdobie",IF(E29=2,"Celková spotreba za obstarávané obdobia","Celková spotreba za obstarávané obdobia")) -> Celková spotreba za obstarávané obdobia | E36: =IF('Výpočet PHZ'!B8=0,"",'Výpočet PHZ'!B8) ->  | F36: MWh | AB36: =LEFT($B$47,20) -> 5) Počet ďalších prá | AC36: =ROW($B$47) -> 47 | AD36: 308 | AE36: 308 | AF36: 308 | AG36: 308 | AH36: 308 | AI36: 308 | AJ36: 308
AB37: =LEFT($B$48,20) -> 6) Sledovanie komodi | AC37: =ROW($B$48) -> 48 | AD37: 22 | AE37: 28 | AF37: 33 | AG37: 43 | AH37: 47 | AI37: 47 | AJ37: 22
B38: Upozornenie!!! Finančný objem obsahuje celkovú cenu elektrickej energie vrátane ceny za distribúciu elektriny vrátane prenosu elektriny a strát pri prenose elektriny, ostatných regulovaných položiek v zmysle rozhodnutí Úradu pre reguláciu sieťových odvetví, odvodu do Národného jadrového fondu a spotrebnej dane. | AB38: =LEFT($B$49,20) -> 7) Pevná sadzba za r | AC38: =ROW($B$49) -> 49 | AD38: 189 | AE38: 189 | AF38: 189 | AG38: 189 | AH38: 330 | AI38: 330 | AJ38: 189
AB39: =LEFT($B$50,20) -> 8) Komplexné riadeni | AC39: =ROW($B$50) -> 50 | AD39: 88 | AE39: 88 | AF39: 88 | AG39: 88 | AH39: 100 | AI39: 120 | AJ39: 88
B40: Člen SCO / Partner SCO: | D40: Partner | F40: Zodpovedný obchodný manažér SCO: | G40: =L34 -> Ing. Ľuboš Babarík +421 903 803 306 obchod@i-sco.sk | I40: 1 | J40: 2) Vypracovanie súťažných podkladov (SP) pre verejné obstarávanie | AB40: =OR(G55>0.3,G55<0) -> FALSE | AC40: =OR(AND(AB40=TRUE,S1=1)=TRUE,AD40=TRUE) -> FALSE | AD40: =G55<0 -> FALSE
J41: 2) Metodiky na prieskum trhu
B42: Objednaná položka | F42: =IF(C51=0,"Jednotková cena","Jednotková cena bez DPH") -> Jednotková cena bez DPH | G42: =IF(C51=0,"Celková cena","Celková cena bez DPH") -> Celková cena bez DPH | H42: Celková cena s DPH
B43: 1) Odborná analýza, návrh metodiky pre danú komoditu a návrh riešenia verejného obstarávania | E43: áno | F43: =ROUND($R$1*($Q$20*AJ32),0) -> 114 | G43: =IF(E43="áno",F43,0) -> 114 | H43: =G43*1.2 -> 136.8 | J43: 7) Pevná sadzba za realizáciu e-aukcie
B44: =IF(G29="Zákazka s nízkou hodnotou",AA44,AA45) -> 2) Vypracovanie rámcovej dohody podľa Obchodného zákonníka, v zmysle Zákona č. 343/2015 Z. z. o verejnom obstarávaní a o zmene a doplnení niektorých zákonov | E44: áno | F44: =ROUND($R$1*($Q$20*AJ33),0) -> 103 | G44: =IF(E44="áno",F44,0) -> 103 | H44: =G44*1.2 -> 123.6 | J44: 7) Pevná sadzba za realizáciu prieskumu trhu formou e-aukcie | AA44: 2) Vypracovanie výzvy na predkladanie ponúk, stanovenie podmienok pre proces verejného obstarávania v zmysle zákona č. 343/2015 Z.z. a podmienok dodávateľskej zmluvy pre verejného obstarávateľa v zmysle Obchodného zákonníka SR
B45: 3) Vypracovanie súťažných podkladov (SP) pre verejné obstarávanie / príležitostné spoločné obstarávanie | E45: áno | F45: 129 | G45: =IF(E45="áno",F45,0) -> 129 | H45: 154.8 | J45: 8) Komplexné riadenie procesu verejného obstarávania / príležitostného spoločného obstarávania | AA45: 2) Vypracovanie rámcovej dohody podľa Obchodného zákonníka, v zmysle Zákona č. 343/2015 Z. z. o verejnom obstarávaní a o zmene a doplnení niektorých zákonov
B46: 4) Počet odberných miest - zahrnutie do SP v € / 1 OM | E46: =COUNTA(Tabuľka2[EIC kód],Odberné_miesta[EIC kód],Tabuľka3[EIC kód]) -> 0 | F46: 23 | G46: =E46*F46 -> 0 | H46: 0 | J46: 8) Komplexné riadenie riadenie procesu prieskumu trhu
B47: 5) Počet ďalších právnych subjektov v zriaďovateľskej právomoci (s výnimkou objednávateľa) | F47: 400 | G47: =E47*F47 -> 0 | H47: 0
B48: 6) Sledovanie komoditnej burzy PXE a písomné stanovenie burzového dňa pre určenie ceny elektrickej energie v optimálnom čase na zazmluvneného dodávateľa a informovanie objednávateľa | E48: áno | F48: 29 | G48: =IF(E48="áno",F48,0) -> 29 | H48: 34.8 | J48: Faktúra číslo 2 za položky 2 - 7 bude vystavená po zverejnení oznámenia vo vestníku VO
B49: =IF(E33>=1000,J43,J44) -> 7) Pevná sadzba za realizáciu prieskumu trhu formou e-aukcie | E49: áno | F49: =AJ38 -> 189 | G49: =IF(E49="áno",F49,0) -> 189 | H49: 226.8 | J49: Faktúra číslo 2 bude vystavená za položky 2 - 9 po ukončení VO
B50: =IF(E33>=1000,J45,J46) -> 8) Komplexné riadenie riadenie procesu prieskumu trhu | E50: áno | F50: 114 | G50: =IF(E50="áno",F50,0) -> 114 | H50: 136.8
B51: Výška DPH: | C51: 0.2 | E51: Celková cena objednávky: | G51: =SUM(G43:G50) -> 678 | H51: 813.6
B52: Objednávateľ berie na vedomie kritickú situáciu na energetických burzách aktuálny nedostatok energetických | E52: Cena objednávky prepočítaná na jeden rok: | G52: =G56/E29 -> 339 | H52: =G52*1.2 -> 406.8
B53: komodít a je si vedomý, že vysúťažené ceny môžu byť vyššie ako súčasné zazmluvnené ceny. | E53: Priemerná cena na 1 právny subjekt za rok: | G53: =G58 -> 339 | H53: =H58 -> 406.8
B55: Objednávateľ, ak sa nedohodne inak, zodpovedá za včasné a správne vypovedanie zmluvy so súčastným dodávateľom. | E55: Výška zľavy: | G55: =SUM(IF(D40="Člen",0.21,0)+Q1/100) -> 0 | M55: =G55 -> 0
E56: Celková suma objednávky po zľave: | G56: =G51*(1-G55) -> 678 | H56: =(G56*$C$51)+G56 -> 813.6
E57: Cena objednávky prepočítaná na jeden rok: | G57: =G56/E29 -> 339 | H57: =G57*1.2 -> 406.8
E58: Priemerná cena na 1 právny subjekt za rok: | G58: =(G56/(E47+1)/E29) -> 339 | H58: =G58*1.2 -> 406.8
B60: Dodávateľ je platcom DPH. Splatnosť faktúr je 7 dní odo dňa ich doručenia.
G61: Cena bez DPH | H61: Cena s DPH
B62: ="Faktúra číslo 1 za položku "&IF(G29="Zákazka s nízkou hodnotou - nižšieho rozsahu","1 a 2",1)&" bude vystavená na objednávateľa ihneď po spracovaní dát a potvrdení akceptácie objednávky dodávateľom" -> Faktúra číslo 1 za položku 1 a 2 bude vystavená na objednávateľa ihneď po spracovaní dát a potvrdení akceptácie objednávky dodávateľom | G62: =IF($AC$40=TRUE,IF($K$29="Zákazka s nízkou hodnotou",SUM(G43:G44),G43),IF(K29="Zákazka s nízkou hodnotou",SUM(G43:G44)*(1-$G$55),G43*(1-$G$55))) -> 217 | H62: =G62*1.2 -> 260.4
B63: ="Faktúra číslo 2 za položky "&IF(G29="Zákazka s nízkou hodnotou - nižšieho rozsahu","3 - 8","2 - 6")&" bude vystavená po "&IF(G29="Zákazka s nízkou hodnotou - nižšieho rozsahu","po zaslaní výzvy na predkladanie ponúk pre zákazku s nízkou hodnotou a jej vyhodnotením.","zverejnení oznámenia vo vestníku VO.") -> Faktúra číslo 2 za položky 3 - 8 bude vystavená po po zaslaní výzvy na predkladanie ponúk pre zákazku s nízkou hodnotou a jej vyhodnotením. | G63: =IF($AC$40=TRUE,IF($K$29="Zákazka s nízkou hodnotou",SUM(G45:G50),SUM(G44:G48)),IF(K29="Zákazka s nízkou hodnotou",SUM(G45:G50)*(1-$G$55),SUM(G44:G48)*(1-$G$55))) -> 461 | H63: =G63*1.2 -> 553.2
B64: Faktúra číslo 3 za položky 7 - 8 bude vystavená po ukončení VO alebo po vyhodnotení výsledkov zákazky s nízkou hodnotou (po úhrade faktúry bude objednávateľovi odoslaná kompletná dokumentácia verejného obstarávania) | G64: =IF($AC$40=TRUE,IF($K$29="Zákazka s nízkou hodnotou",0,SUM(G49:G50)),IF(K29="Zákazka s nízkou hodnotou",0,SUM(G49:G50)*(1-$G$55))) -> 0 | H64: =(G64*$C$51)+G64 -> 0
B66: Súčasťou tejto objednávky je tabuľka odberných miest a predpokladaných spotrieb na na obstatávané obdobie.
B67: Dolupodpísaný objednávateľ (štatutárny orgán objednávateľa) čestne vyhlasujem, že:
B68: 1/ Všetky informácie obsiahnuté v objednávke a v príkaznej zmluve sú úplné, pravdivé a správne. | E68: Pečiatka a podpis za verejného obstarávateľa:
B69: 2/ Som si vedomý skutočnosti, že nesiem úplnú zodpovednosť za následky uvedenia nesprávnych údajov.
B70: 3/ Svojím podpisom súhlasím so všeobecnými obchodnými podmienkami uvedenými na zadnej strane tejto objednávky.
B71: 4/ Akceptujem posielanie faktúr a potvrdenie objednávky elektronickou formou.
B73: Dňa: | E73: Pečiatka a podpis za dodávateľa odborných služieb (SCO):
B75: Pred odoslaním podpísanej objednávky poštou, Vás prosíme o jej zoscanovanie a zaslanie na centrálu SCO e-mailom na obchod@i-sco.sk
B77: Ďakujeme za spoluprácu.
B80: Všeobecné obchodné podmienky
B82: Práva a povinnosti Dodávateľa odborných služieb
B84: Práva a povinnosti Slovenského centra obstarávania – ďalej len “Dodávateľ odborných služieb” príležitostného spoločného obstarávania.
B86: 1. Dodávateľ odborných služieb sa zaväzuje príležitostné spoločné obstarávania vykonávať v zmysle aktuálnej platnej legislatívy Európskej únie a Slovenskej republiky, najmä však podľa zákona č. 343/2015 Z.Z o verejnom obstarávaní a o zmene a doplnení niektorých zákonov v znení neskorších predpisov.
B87: 2. Dodávateľ odborných služieb sa zaväzuje svojimi administrátorskými zásahmi do výberových konaní v príležitostných spoločných obstarávaniach nezvýhodňovať ktoréhokoľvek dodávateľa pred ostatnými dodávateľmi.
B88: 3. Dodávateľ odborných služieb je povinný bezodkladne informovať všetkých účastníkov o udalostiach, ktoré by mohli obmedziť riadny priebeh príležitostného spoločného obstarávania a následne podniknúť adekvátne kroky vedúce k ich náprave.
B89: 4. Dodávateľ odborných služieb sa zaväzuje poskytnúť službu na základe objednávky na príležitostné spoločné obstarávanie v dohodnutom rozsahu a kvalite, nezodpovedá však za vznik udalostí, ktoré akýmkoľvek spôsobom znemožnia účastníkovi riadne zapojenie sa do výberového konania a boli zavinené treťou osobou. Dodávateľ odborných služieb tiež nezodpovedá za kvalitu a dostupnosť internetových služieb účastníka.
B90: 5. V prípade realizácie verejného obstarávania podľa § 117 Zákona 343/2015 Z. z. a jeho novelizácií sa proces verejného obstarávania bude realizovať bez rámcovej dohody.
B91: 6. Dodávateľ odborných služieb sa zaväzuje, že vhodnými opatreniami zabezpečí dôvernosť všetkých údajov získaných od účastníka a bude ich používať len na účely spojené s príležitostným spoločným obstarávaním, ku ktorému zadávateľ svojou objednávkou pristupuje, resp. pre svoje interné potreby.
B92: 7. Dodávateľ odborných služieb zodpovedá za náhradu škôd spôsobených porušením zmluvných, resp. mimozmluvných podmienok len v prípade, že k nemu došlo úmyselne z jeho strany, pokiaľ nie je v týchto podmienkach stanovené inak.
B94: Práva a povinnosti objednávateľa
B96: 1. Objednávateľ bude poskytovať súčinnosť potrebnú k uskutočneniu predmetu plnenia Dodávateľom odborných služieb, ktorou je včasné poskytnutie úplných informácií (najneskôr 14 dní pred zverejnením súťažných podkladov príležitostného spoločného obstarávania) podľa pokynov poskytovateľa týkajúcich sa špecifikácií, cien, objemu, kvality predmetu nákupu alebo predávaného majetku a iných informácií potrebných k príprave a uskutočneniu komplexného procesu príležitostného spoločného obstarávania. Objednávateľ sa zaväzuje dodržať všetky doporučené termíny, metodické postupy a pokyny potrebné pre prípravu a realizáciu príležitostného spoločného obstarávania, ktoré odporučí Dodávateľovi odborných služieb.
B97: 2. Objednávateľ zodpovedá za správnosť ním poskytnutých údajov týkajúcich sa predmetu príležitostného spoločného obstarávania a obchodných podmienok súvisiacich s výberovým konaním. Neoddeliteľnou súčasťou tejto objednávky je zmluva o Príležitostnom spoločnom obstarávaní podľa § 16 zákona č. 343/2015 Zb.
B98: 3. Objednávateľ plne zodpovedá za prípadnú škodu, ktorá vznikne Dodávateľovi odborných služiebovi, resp. dodávateľovi v súvislosti s ním umožneným prístupom tretej osoby k informáciám týkajúcich sa príležitostného spoločného obstarávania.
B99: 4. Objednávateľ má právo vykonať zmenu v špecifikácii predmetu príležitostného spoločného obstarávania v jeho priebehu len v prípade, že táto zmena neovplyvní riadny priebeh výberového konania a je plne v súlade so zákonom 343/2015 Z.z.
B100: 5. Výsledky príležitostného spoločného obstarávania nie sú pre objednávateľa záväzné v prípade, ak je ponuka úspešného uchádzača v rozpore s podmienkami uvedenými v súťažných podkladoch, resp. vo výzve na účasť.
B101: 6. Objednávateľ je povinný uhradiť dohodnutú cenu za poskytovanú službu na základe ceny, ktorá vzišla pri vyplnení objednávky.
B102: 7. V prípade, že konaním objednávateľa vznikne Dodávateľovi odborných služiebovi, resp. dodávateľovi škoda, je tento oprávnený nárokovať si u objednávateľa jej náhradu v plnej výške.
B103: 8. Objednávateľ dáva Dodávateľovi odborných služiebovi súhlas k použitiu jeho e-mailových adries uložených v databáze Slovenského centra obstarávania k zasielaniu e-mailov súvisiacich s činnosťou združenia.
B104: 9. Objednávateľ sa zaväzuje neposkytovať tretím stranám know–how, ktoré Dodávateľ odborných služieb používa. V prípade preukázania porušenia tohto bodu zmluvy je objednávateľ povinný uhradiť Dodávateľovi odborných služiebovi vzniknutú škodu v plnej výške a k tomu sankciu vo výške 7.000 €
B106: Záverečné ustanovenia
B108: 1. Právne vzťahy medzi Dodávateľom odborných služieb a účastníkmi príležitostných spoločných obstarávaní sa riadia právnym poriadkom Slovenskej republiky.
B109: 2. Akékoľvek zmeny a doplnky týchto všeobecne platných obchodných podmienok možno urobiť len písomnou formou, inak sú neplatné.
B110: 3. Zmluvné strany sa zaväzujú, že všetky prípadné spory, ktoré vzniknú v súvislosti s touto zmluvou, budú riešiť vzájomnou dohodou s cieľom - zachovať dobré obchodné vzťahy.
B111: 4. Zmluvné strany svojimi podpismi potvrdzujú, že sú s jej obsahom oboznámené a že túto objednávku uzatvárajú dobrovoľne na základe svojej slobodnej vôle, nie v tiesni, ani za nápadne nevyhovujúcich podmienok.
B112: 5. Tieto Všeobecné obchodné podmienky pre príležitostné spoločné obstarávanie sú platné a účinné od 18.4.2016 v plnom rozsahu pre všetkých účastníkov príležitostných spoločných obstarávaní realizovaných Slovenským centrom obstarávania. V prípade, že nastane zmena v týchto podmienkach v priebehu niektorého príležitostného spoločného obstarávania vyhláseného prostredníctvom Slovenského centra obstarávania, tá sa na prebiehajúce výberové konanie nevzťahuje.

Sheet Verejné osvetlenie (hidden)
B4: Podklady o spotrebách elektrickej energie všetkých odberných miest
B5: podklad pre výberové konanie na obstarávanie elektrickej energie
B7: Odberateľ: | C7: =IF(Objednávka!C14=0,"",Objednávka!C14) -> 
B8: Adresa: | C8: =IF(Objednávka!C16=0,"",CONCATENATE(Objednávka!C16,", ",Objednávka!C19," ",Objednávka!C18)) -> 
B9: IČO: | C9: =IF(Objednávka!G15=0,"",Objednávka!G15) -> 
B10: Podklady vyplnil:
B11: Telefonický kontakt:
B12: Mailový kontakt:
B13: Počet riadkov
A16: P.č. | B16: Adresa miesta spotreby | C16: Názov odberného miesta | D16: EIC kód | E16: Meno subjektu ( vypisujte, iba ak obstarávate pre viac subjektov) | F16: Súčastný dodávateľ a platné zmluvy. | J16: ="Spotreba za rok "&IF(MONTH(Objednávka!H30)=1,YEAR(Objednávka!H30)-2,YEAR(Objednávka!H30)-1)&" v MWh" -> Spotreba za rok 2022 v MWh | M16: ="Predpokladaná spotreba "&IF(MONTH(Objednávka!H30)=1," na rok "&YEAR(Objednávka!H30)," za obdobie 1."&MONTH(Objednávka!H30)&"."&YEAR(Objednávka!H30)&" - 31.12."&YEAR(Objednávka!H30))&" v MWh" -> Predpokladaná spotreba na rok 2024 v MWh | P16: ="Predpokladaná spotreba za rok "&YEAR(Objednávka!H30)+1&" v MWh" -> Predpokladaná spotreba za rok 2025 v MWh | S16: ="Predpokladaná spotreba za rok "&YEAR(Objednávka!H30)+2&" v MWh" -> Predpokladaná spotreba za rok 2026 v MWh | V16: Napätie | W16: Nízke napätie | Y16: Typ merania A-priebehové meranie s diaľkovým odpočtom B-priebehové meranie bez ďialkového odpočtu C-bez priebehového merania
J17: (Informatívne údaje) | M17: (záväzné údaje do súťažných podkladov) | P17: (záväzné údaje do súťažných podkladov) | S17: (záväzné údaje do súťažných podkladov)
F18: Meno dodávateľa | G18: Trvanie súčasnej zmluvy do | H18: Výpovedná lehota | I18: Dátum účinnosti novej dodávky | J18: JT | K18: VT | L18: NT | M18: JT | N18: VT | O18: NT | P18: JT | Q18: VT | R18: NT | S18: JT | T18: VT | U18: NT | V18: NN | W18: Hodnota ističa | X18: Distribučná tarifa
A19: P.č. | B19: Adresa miesta spotreby | C19: Názov odberného miesta | D19: EIC kód | E19: Meno subjektu | F19: Meno dodávateľa | G19: Trvanie súčasnej zmluvy do | H19: Výpovedná lehota | I19: Dátum účinnosti novej dodávky | J19: JT | K19: VT | L19: NT | M19: JT/1 | N19: VT/1 | O19: NT/1 | P19: JT/2 | Q19: VT/2 | R19: NT/2 | S19: JT/3 | T19: VT/3 | U19: NT/3 | V19: Napätie | W19: Hodnota ističa | X19: Distribučná tarifa | Y19: Typ merania
A20: 1
A21: 2
A22: 3
A23: 4
A24: 5
A25: 6
A26: 7
A27: =A26+1 -> 8
A28: 9
A29: 10
A30: Pre pridanie ďalších riadkov, do bunky "C13" vpíšte počet riadkou a kliknite na tlačidlo" Pridaj riadky" | J30: =SUM(Tabuľka2[JT]) -> 0 | K30: =SUM(Tabuľka2[[VT ]]) -> 0 | L30: =SUM(Tabuľka2[NT]) -> 0 | M30: =SUM(Tabuľka2[JT/1]) -> 0 | N30: =SUM(Tabuľka2[VT/1]) -> 0 | O30: =SUM(Tabuľka2[NT/1]) -> 0 | P30: =SUM(Tabuľka2[JT/2]) -> 0 | Q30: =SUM(Tabuľka2[VT/2]) -> 0 | R30: =SUM(Tabuľka2[NT/2]) -> 0 | S30: =SUBTOTAL(109,Tabuľka2[JT/3]) -> 0 | T30: =SUBTOTAL(109,Tabuľka2[VT/3]) -> 0 | U30: =SUBTOTAL(109,Tabuľka2[NT/3]) -> 0
J31: spolu za všetky tarify | L31: =J30+K30+L30 -> 0 | M31: spolu za všetky tarify | O31: =M30+N30+O30 -> 0 | P31: spolu za všetky tarify | R31: =P30+Q30+R30 -> 0 | S31: Spolu za všetky tarify | U31: =S30+T30+U30 -> 0

Sheet Odberné miesta
B4: Podklady o spotrebách elektrickej energie všetkých odberných miest
B5: podklad pre výberové konanie na obstarávanie elektrickej energie
I6: JT | J6: Jednotarif | L6: NN | M6: nízke napätie
B7: Odberateľ: | C7: =IF(Objednávka!C14=0,"",Objednávka!C14) ->  | I7: VT | J7: vysoký tarif | L7: VN | M7: vysoké napätie
B8: Adresa: | C8: =IF(Objednávka!C16=0,"",CONCATENATE(Objednávka!C16,", ",Objednávka!C19," ",Objednávka!C18)) ->  | I8: NT | J8: nízky tarif | L8: EIC kód | M8: viď. zmluva
B9: IČO: | C9: =IF(Objednávka!G15=0,"",Objednávka!G15) -> 
B10: Podklady vyplnil: | I10: AKU NT | J10: elektrické vykurovanie - nízky tarif
B11: Telefonický kontakt: | I11: AKU VT | J11: elektrické vykurovanie - vysoký tarif
B12: Mailový kontakt: | I12: WT | J12: víkendový tarif (víkendy a sviatky)
B13: Počet riadkov
A16: P. č. | B16: Adresa miesta spotreby | C16: Názov odberného miesta | D16: EIC kód | E16: Meno subjektu ( vypisujte, iba ak obstarávate pre viac subjektov) | F16: Súčastný dodávateľ a platné zmluvy. | J16: Spotreba za rok 2022 v MWh Informatívne údaje | P16: Spotreba spolu | Q16: ="Predpokladaná spotreba "&IF(MONTH(Objednávka!H30)=1," na rok "&YEAR(Objednávka!H30)," za obdobie 1."&MONTH(Objednávka!H30)&"."&YEAR(Objednávka!H30)&" - 31.12."&YEAR(Objednávka!H30))&" v MWh" -> Predpokladaná spotreba na rok 2024 v MWh | W16: Spotreba spolu | X16: ="Predpokladaná spotreba za rok "&YEAR(Objednávka!H30)+1&" v MWh" -> Predpokladaná spotreba za rok 2025 v MWh | AD16: Spotreba spolu | AE16: ="Predpokladaná spotreba za rok "&YEAR(Objednávka!H30)+2&" v MWh" -> Predpokladaná spotreba za rok 2026 v MWh | AK16: Spotreba spolu | AL16: Napätie | AM16: Vysoké napätie | AO16: Nízke napätie | AQ16: Typ merania A-priebehové meranie s diaľkovým odpočtom B-priebehové meranie bez ďialkového odpočtu C-bez priebehového merania
Q17: záväzné údaje do súťažných podkladov | X17: záväzné údaje do súťažných podkladov | AE17: záväzné údaje do súťažných podkladov
F18: Meno dodávateľa | G18: Trvanie súčasnej zmluvy do | H18: Výpovedná lehota | I18: Dátum účinnosti novej dodávky | J18: JT | K18: VT | L18: NT | M18: WT | N18: AKU/VT | O18: AKU/NT | P18: MWh | Q18: JT | R18: VT | S18: NT | T18: WT | U18: AKU/VT | V18: AKU/NT | W18: MWh | X18: JT | Y18: VT | Z18: NT | AA18: WT | AB18: AKU/VT | AC18: AKU/NT | AD18: MWh | AE18: JT | AF18: VT | AG18: NT | AH18: WT | AI18: AKU/VT | AJ18: AKU/NT | AK18: MWh | AL18: NN / VN | AM18: Rezervovaná kapacita | AN18: Maximálna rezervovaná kapacita | AO18: Hodnota ističa | AP18: Distribučná tarifa
A19: P.č. | B19: Adresa miesta spotreby | C19: Názov odberného miesta | D19: EIC kód | E19: Meno subjektu | F19: Meno dodávateľa | G19: Trvanie súčasnej zmluvy do | H19: Výpovedná lehota | I19: Dátum účinnosti novej dodávky | J19: JT | K19: VT | L19: NT | M19: WT | N19: AKU/VT | O19: AKU/NT | P19: Spotreba spolu 22 | Q19: JT/1 | R19: VT/1 | S19: NT/1 | T19: WT/1 | U19: AKU/VT/1 | V19: AKU/NT/1 | W19: Spotreba spolu 1 | X19: JT/2 | Y19: VT/2 | Z19: NT/2 | AA19: WT/2 | AB19: AKU/VT/2 | AC19: AKU/NT/2 | AD19: Spotreba spolu/2 | AE19: JT/3 | AF19: VT/3 | AG19: NT/3 | AH19: WT/3 | AI19: AKU/VT/3 | AJ19: AKU/NT/ | AK19: Spotreba spolu/3 | AL19: NN/VN | AM19: Rezervovaná kapacita | AN19: Maximálna rezervovaná kapacita | AO19: Hodnota ističa | AP19: Distribučná tarifa | AQ19: Typ merania
A20: 1 | P20: =SUM(J20:O20) -> 0 | W20: =SUM(Odberné_miesta[[#This Row],[JT/1]:[AKU/NT/1]]) -> 0 | AD20: =SUM(X20:AC20) -> 0 | AK20: =SUM(AE20:AJ20) -> 0
A21: =A20+1 -> 2 | P21: 0 | W21: =SUM(Odberné_miesta[[#This Row],[JT/1]:[AKU/NT/1]]) -> 0 | AD21: 0 | AK21: 0
A22: 3 | P22: 0 | W22: =SUM(Odberné_miesta[[#This Row],[JT/1]:[AKU/NT/1]]) -> 0 | AD22: 0 | AK22: 0
A23: 4 | P23: 0 | W23: =SUM(Odberné_miesta[[#This Row],[JT/1]:[AKU/NT/1]]) -> 0 | AD23: 0 | AK23: 0
A24: 5 | P24: 0 | W24: =SUM(Odberné_miesta[[#This Row],[JT/1]:[AKU/NT/1]]) -> 0 | AD24: 0 | AK24: 0
A25: 6 | P25: 0 | W25: =SUM(Odberné_miesta[[#This Row],[JT/1]:[AKU/NT/1]]) -> 0 | AD25: 0 | AK25: 0
A26: =A25+1 -> 7 | P26: =SUM(J26:O26) -> 0 | W26: =SUM(Odberné_miesta[[#This Row],[JT/1]:[AKU/NT/1]]) -> 0 | AD26: 0 | AK26: 0
A27: =A26+1 -> 8 | P27: =SUM(J27:O27) -> 0 | W27: =SUM(Odberné_miesta[[#This Row],[JT/1]:[AKU/NT/1]]) -> 0 | AD27: 0 | AK27: 0
A28: =A27+1 -> 9 | P28: =SUM(J28:O28) -> 0 | W28: =SUM(Odberné_miesta[[#This Row],[JT/1]:[AKU/NT/1]]) -> 0 | AD28: 0 | AK28: 0
A29: =A28+1 -> 10 | P29: =SUM(J29:O29) -> 0 | W29: =SUM(Odberné_miesta[[#This Row],[JT/1]:[AKU/NT/1]]) -> 0 | AD29: =SUM(X29:AC29) -> 0 | AK29: =SUM(AE29:AJ29) -> 0
A30: Pre pridanie ďalších riadkov, do bunky "C13" vpíšte počet riadkou a kliknite na tlačidlo" Pridaj riadky" | J30: =SUM(Odberné_miesta[[JT ]]) -> 0 | K30: =SUM(Odberné_miesta[VT]) -> 0 | L30: =SUM(Odberné_miesta[NT]) -> 0 | M30: =SUM(Odberné_miesta[WT]) -> 0 | N30: =SUM(Odberné_miesta[AKU/VT]) -> 0 | O30: =SUM(Odberné_miesta[AKU/NT]) -> 0 | P30: =SUM(Odberné_miesta[Spotreba spolu 22]) -> 0 | Q30: =SUM(Odberné_miesta[JT/1]) -> 0 | R30: =SUM(Odberné_miesta[VT/1]) -> 0 | S30: =SUM(Odberné_miesta[NT/1]) -> 0 | T30: =SUM(Odberné_miesta[WT/1]) -> 0 | U30: =SUM(Odberné_miesta[AKU/VT/1]) -> 0 | V30: =SUM(Odberné_miesta[AKU/NT/1]) -> 0 | W30: =SUM(Odberné_miesta[Spotreba spolu 1]) -> 0 | X30: =SUM(Odberné_miesta[JT/2]) -> 0 | Y30: =SUM(Odberné_miesta[VT/2]) -> 0 | Z30: =SUM(Odberné_miesta[NT/2]) -> 0 | AA30: =SUM(Odberné_miesta[WT/2]) -> 0 | AB30: =SUM(Odberné_miesta[AKU/VT/2]) -> 0 | AC30: =SUM(Odberné_miesta[AKU/NT/2]) -> 0 | AD30: =SUM(Odberné_miesta[Spotreba spolu/2]) -> 0 | AE30: =SUM(Odberné_miesta[JT/2]) -> 0 | AF30: =SUM(Odberné_miesta[VT/2]) -> 0 | AG30: =SUM(Odberné_miesta[NT/2]) -> 0 | AH30: =SUM(Odberné_miesta[WT/2]) -> 0 | AI30: =SUM(Odberné_miesta[AKU/VT/2]) -> 0 | AJ30: =SUM(Odberné_miesta[AKU/NT/2]) -> 0 | AK30: =SUBTOTAL(109,Odberné_miesta[Spotreba spolu/3]) -> 0

Sheet Nemeraná spotreba (hidden)
B4: Podklady o spotrebách elektrickej energie všetkých odberných miest
B5: podklad pre výberové konanie na obstarávanie elektrickej energie
B7: Odberateľ: | C7: =IF(Objednávka!C14=0,"",Objednávka!C14) -> 
B8: Adresa: | C8: =IF(Objednávka!C16=0,"",CONCATENATE(Objednávka!C16,", ",Objednávka!C19," ",Objednávka!C18)) -> 
B9: IČO: | C9: =IF(Objednávka!G15=0,"",Objednávka!G15) -> 
B10: Podklady vyplnil:
B11: Telefonický kontakt:
B12: Mailový kontakt:
B13: Počet riadkov
A16: P. č. | B16: Adresa miesta spotreby | C16: Názov miesta spotreby | D16: EIC kód | E16: Meno subjektu ( vypisujte, iba ak obstarávate pre viac subjektov) | F16: Súčastný dodávateľ a platné zmluvy. | J16: Príkon spotrebiča (W) (ak je viac spotrebičov, tak uveďte súčet príkonov) | K16: Poznámka
F17: Meno dodávateľa | G17: Trvanie súčasnej zmluvy do | H17: Výpovedná lehota | I17: Dátum účinnosti novej dodávky
A18: P.č. | B18: Adresa miesta spotreby | C18: Názov miesta spotreby | D18: EIC kód | E18: Meno subjektu | F18: Meno dodávateľa | G18: trvanie zmluvy | H18: výpovedná lehota | I18: Dátum účinosti | J18: Príkon | K18: Poznámka
A19: 1
A20: 2
A21: 3
A22: 4
A23: 5
A24: 6
A25: 7
A26: 8
A27: 9
A28: 10
A29: Pre pridanie ďalších riadkov, do bunky "C13" vpíšte počet riadkou a kliknite na tlačidlo" Pridaj riadky"

Sheet Zoznam subjektov (hidden)
A2: Zoznam ďalších právnych subjektov
A4: Počet subjektov
A6: Subjekt č. | B6: 1
A7: Meno subjektu | D7: Prosíme o správne a kompletné vyplnenie údajov. Tieto dáta sú potrebné pri zadávaní zákazky do elektronickej platformy IS EPVO a budú poskytnuté víťazovi obstarávania na urýchlenie prípravy zmlúv.
A8: Ulica, číslo
A9: Sídlo
A10: PSČ
A11: IČO
A12: Štatutárny zástupca
A13: Telefón
A14: E-mail
A15: WEB
A16: .
A18: Pre pridanie ďalších subjektov, do bunky "B4" vpíšte počet subjektov a kliknite na tlačidlo" Pridaj subjekty"
A49: .
A61: .

Sheet Výpočet PHZ (hidden)
C2: Výpočet predpokladanej hodnoty zákazky (PHZ)
B4: Zákazka: | C4: ="Výber dodávateľa elektrickej energie – "&CONCATENATE(Objednávka!C14," ",Objednávka!G12) -> Výber dodávateľa elektrickej energie –
B5: Verejný obstarávateľ: | C5: =IF(Objednávka!C14=0,"",Objednávka!C14) -> 
B7: Celkový objem v MWh | C7: PHZ bez DPH
B8: =C11+D11+E11 -> 0 | C8: =C15+D15+E15 -> 0
C10: =YEAR(Objednávka!H30) -> 2024 | D10: =YEAR(Objednávka!H30)+1 -> 2025 | E10: =YEAR(Objednávka!H30)+2 -> 2026
B11: Objem v MWh | C11: ='Verejné osvetlenie'!O31+'Odberné miesta'!W30 -> 0 | D11: =IF(Objednávka!E29>1,'Verejné osvetlenie'!R31+'Odberné miesta'!AD30,0) -> 0 | E11: =IF(Objednávka!E29=3,'Odberné miesta'!AK30+'Verejné osvetlenie'!U31,0) -> 0
B12: Cena na burze EEX-PXE Slovakian Power Futures Zo dňa 18.8.2023 | C12: 150.7 | D12: 132.26 | E12: 177.28
B13: Poplatky za distribúciu vrátane spotrebnej dane (odhad) | C13: 157 | D13: 157 | E13: 157
B14: Prirážka dodávateľa max. (odhad) | C14: 40 | D14: 40 | E14: 40
B15: PHZ bez DPH | C15: =ROUND(SUM(C11*(C12+C13+C14)),2) -> 0 | D15: =ROUND(SUM(D11*(D12+D13+D14)),2) -> 0 | E15: =ROUND(SUM(E11*(E12+E13+E14)),2) -> 0
B17: Dňa : | C17: 2023-08-21
B18: Vypracoval: | C18: Vladimír Holubovský
